bitfinex/quotes_ETHUSD_20250711
["timestamp","ask_amount","ask_price","bid_price","bid_amount"]
[1752206501570,0.001,2965.1,2965.0,0.168]
[1752206502190,0.001,2965.1,2965.0,0.6047]
[1752206502410,0.001,2965.1,2965.0,0.168]
[1752206503975,0.4496,2965.1,2964.7,5.165]
[1752206504171,1.4028,2965.0,2964.5,0.002]
[1752206504364,1.4028,2965.0,2964.6,0.168]
[1752206504565,0.4486,2964.9,2964.6,0.168]
[1752206506274,0.9542,2965.0,2964.6,0.168]
[1752206506468,0.001,2965.1,2964.7,0.47043022]
[1752206506680,0.001,2965.1,2964.9,0.168]
[1752206506910,0.001,2965.1,2964.9,0.20172795]
[1752206507094,0.001,2965.1,2964.9,0.63842795]
[1752206508391,0.001,2965.1,2965.0,0.4367]
[1752206509072,0.001,2965.1,2964.9,0.168]
[1752206509271,0.001,2965.1,2964.9,0.6047]
[1752206509775,0.001,2965.1,2964.9,0.168]
[1752206510084,0.9299,2965.0,2964.5,0.002]
[1752206510296,0.4486,2964.9,2964.7,0.168]
[1752206510496,0.9299,2965.0,2964.7,0.168]
[1752206510497,1.3709,2965.0,2964.7,0.168]
[1752206510997,0.441,2964.9,2964.7,0.168]
[1752206511823,0.441,2964.8,2964.7,0.168]
[1752206514619,0.9299,2965.0,2964.7,0.168]
[1752206514924,0.001,2965.1,2964.7,0.168]
[1752206515613,0.442,2965.1,2964.7,0.168]
[1752206517285,0.001,2965.1,2964.7,0.168]
[1752206517512,0.441,2965.0,2964.7,0.168]
[1752206517693,0.001,2965.1,2964.7,0.168]
[1752206517992,0.441,2964.9,2964.7,0.168]
[1752206520192,0.001,2965.1,2964.7,0.168]
[1752206520398,0.441,2964.9,2964.7,0.168]
[1752206520794,0.001,2965.1,2964.7,0.6268]
[1752206521031,0.442,2965.1,2964.7,0.168]
[1752206521810,0.441,2965.0,2964.7,0.168]
[1752206522200,0.001,2965.1,2964.7,0.168]
[1752206522400,0.441,2964.9,2964.7,0.168]
[1752206523137,0.001,2965.1,2964.7,0.168]
[1752206523434,0.441,2965.0,2964.7,0.168]
[1752206523732,0.001,2965.1,2964.7,0.168]
[1752206524528,0.441,2965.0,2964.7,0.168]
[1752206525102,0.441,2964.9,2964.7,0.168]
[1752206525411,0.441,2964.8,2964.7,0.168]
[1752206527638,0.441,2965.0,2964.7,0.168]
[1752206527941,0.441,2964.9,2964.7,0.168]
[1752206529935,0.442,2965.1,2964.7,0.168]
[1752206530415,0.001,2965.1,2964.7,0.168]
[1752206530744,0.001,2965.1,2965.0,0.168]
[1752206530907,0.001,2965.1,2965.0,5.43808218]
[1752206531111,0.001,2965.1,2965.0,5.89688218]
[1752206531309,0.001,2965.1,2965.0,15.89688218]
[1752206531508,0.001,2965.1,2965.0,15.86315537]
[1752206532213,0.001,2965.1,2965.0,22.49925537]
[1752206532453,0.001,2965.1,2965.0,25.87193665]
[1752206532937,0.001,2965.1,2965.0,28.48703355]
[1752206533297,0.001,2965.1,2965.0,25.11435227]
[1752206534511,0.001,2965.1,2965.0,28.48703355]
[1752206534706,0.001,2965.1,2965.0,25.11435227]
[1752206536348,0.001,2965.1,2965.0,28.48703355]
[1752206536553,0.001,2965.1,2965.0,25.11435227]
[1752206537218,0.001,2965.1,2965.0,24.56435227]
[1752206538956,0.001,2965.1,2965.0,24.56335227]
[1752206539656,0.001,2965.1,2965.0,28.48603355]
[1752206539852,0.441,2966.2,2965.5,7.85145227]
[1752206539853,0.609,2966.2,2965.5,7.85145227]
[1752206540151,0.609,2966.2,2965.6,0.03371998]
[1752206540152,1.57553,2966.2,2965.6,0.03371998]
[1752206540361,1.13453,2966.2,2965.5,8.31025227]
[1752206540520,1.13453,2966.2,2965.7,0.168]
[1752206540521,0.4448,2966.1,2965.7,0.168]
[1752206540857,0.4448,2966.0,2965.7,0.168]
[1752206541730,1.57933,2966.2,2965.7,0.168]
[1752206541923,0.4448,2966.1,2965.8,0.03371771]
[1752206542121,0.168,2966.2,2965.8,0.03371771]
[1752206542558,0.9663,2966.3,2966.0,0.168]
[1752206542867,0.4458,2966.3,2966.0,0.168]
[1752206543452,0.001,2966.2,2966.0,0.168]
[1752206544135,0.001,2966.2,2966.1,0.0337143]
[1752206544642,0.001,2966.2,2966.1,0.168]
[1752206547126,0.001,2966.2,2966.1,0.2017143]
[1752206547346,0.001,2966.2,2966.1,0.6344143]
[1752206548475,0.001,2966.2,2966.1,0.2017143]
[1752206548627,0.001,2966.2,2966.1,1.5711143]
[1752206549026,0.001,2966.2,2966.1,1.5374]
[1752206549227,0.001,2966.2,2966.1,1.1047]
[1752206549665,0.001,2966.2,2966.1,0.168]
[1752206550540,0.4458,2966.2,2966.1,0.168]
[1752206556991,0.168,2966.1,2965.6,0.168]
[1752206557164,1.581,2966.0,2965.4,0.168]
[1752206557553,0.4448,2965.9,2965.4,0.168]
[1752206558377,0.4448,2965.9,2965.4,10.168]
[1752206558879,1.1362,2966.0,2965.4,10.168]
[1752206559085,0.4448,2965.8,2965.4,10.168]
[1752206559583,0.001,2966.2,2965.8,10.0]
[1752206559788,0.001,2966.2,2966.1,5.23354913]
[1752206560012,0.001,2966.2,2966.1,21.32534913]
[1752206560287,0.001,2966.2,2966.1,21.75804913]
[1752206560784,0.001,2966.2,2966.1,19.89593049]
[1752206560988,0.001,2966.2,2966.1,16.5245]
[1752206561486,0.001,2966.2,2966.1,11.3695]
[1752206561693,0.001,2966.2,2966.1,16.0958]
[1752206562254,0.001,2966.2,2966.1,27.74744228]
[1752206565595,0.001,2967.4,2966.5,0.9104]
[1752206565771,0.001,2967.4,2967.1,0.9501]
[1752206565976,0.001,2967.4,2967.3,21.21757885]
[1752206566491,8.5318,2968.5,2967.8,3.36949929]
[1752206566704,8.5318,2968.5,2967.8,10.0]
[1752206567011,0.4448,2968.5,2967.8,10.0]
[1752206567357,0.04,2968.9,2967.8,10.0]
[1752206567358,0.4848,2967.9,2967.8,10.0]
[1752206569505,0.4848,2967.9,2966.8,0.9707]
[1752206569705,0.4848,2967.9,2966.9,5.161]
[1752206569706,0.9387,2967.8,2966.9,5.161]
[1752206569888,0.168,2967.3,2966.7,0.168]
[1752206570088,0.168,2967.3,2966.7,5.329]
[1752206570296,0.4448,2967.2,2966.7,5.329]
[1752206570799,1.5945,2967.5,2967.0,0.168]
[1752206571000,0.4735,2967.4,2967.0,0.168]
[1752206571204,0.4735,2967.3,2967.0,0.168]
[1752206571614,0.4735,2967.2,2967.0,0.168]
[1752206571985,0.4735,2967.1,2967.0,0.168]
[1752206573613,0.4735,2967.1,2966.4,10.9498]
[1752206573912,0.4735,2967.1,2966.7,0.168]
[1752206574112,0.4735,2967.0,2966.7,5.158]
[1752206574312,0.6415,2967.0,2966.7,5.158]
[1752206575411,0.953,2967.5,2966.8,0.03370635]
[1752206575412,0.4735,2967.3,2966.8,0.03370635]
[1752206575598,0.4735,2967.3,2966.8,0.20170635]
[1752206575996,0.4735,2967.2,2966.8,0.20170635]
[1752206576393,0.168,2967.4,2967.0,10.0]
[1752206576600,0.168,2967.4,2967.1,0.03370294]
[1752206576809,0.168,2967.4,2967.0,15.157]
[1752206578111,0.953,2967.5,2967.1,0.20170294]
[1752206579835,1.4265,2967.5,2967.1,0.168]
[1752206581521,0.953,2967.5,2967.1,0.168]
[1752206581711,0.4735,2967.4,2967.1,0.168]
[1752206582824,0.4735,2967.3,2967.1,0.168]
[1752206583528,0.4735,2967.2,2967.1,0.168]
[1752206583902,0.4735,2967.4,2967.1,0.168]
[1752206584132,0.953,2967.5,2967.1,0.168]
[1752206584430,1.4265,2967.5,2967.1,0.168]
[1752206584838,0.168,2967.6,2967.1,0.168]
[1752206585146,0.4735,2967.4,2967.1,0.168]
[1752206585314,1.3924,2967.3,2967.1,0.168]
[1752206585515,0.4735,2967.2,2967.1,0.168]
[1752206586642,0.9189,2967.3,2967.1,0.168]
[1752206586845,1.4258,2967.5,2967.1,0.168]
[1752206587036,0.4735,2967.4,2967.1,0.168]
[1752206587232,0.9523,2967.5,2967.1,0.168]
[1752206587432,0.4735,2967.3,2967.1,0.168]
[1752206589468,0.4735,2967.2,2967.1,0.168]
[1752206590830,0.9523,2967.5,2967.1,0.168]
[1752206591236,0.4735,2967.4,2967.1,0.168]
[1752206591839,0.9523,2967.5,2967.1,0.168]
[1752206592237,0.168,2967.6,2967.1,0.168]
[1752206592441,0.168,2967.6,2967.2,0.9817018]
[1752206593531,0.6415,2967.6,2967.2,0.948]
[1752206594544,0.6415,2967.6,2967.2,0.9817018]
[1752206594756,0.6415,2967.6,2967.1,0.168]
[1752206594757,0.168,2967.6,2967.1,0.168]
[1752206595068,0.4735,2967.5,2967.1,0.168]
[1752206596970,0.168,2967.6,2967.1,0.168]
[1752206596971,0.4735,2967.4,2967.1,0.168]
[1752206597169,0.4735,2967.3,2966.7,0.9509]
[1752206597386,1.3826,2967.3,2967.0,0.168]
[1752206597540,0.9091,2967.3,2967.0,0.168]
[1752206597739,0.4735,2967.2,2967.0,0.168]
[1752206598448,1.5459,2967.5,2967.0,0.168]
[1752206598846,1.0724,2967.5,2967.0,5.92039398]
[1752206599190,0.4735,2967.4,2967.0,5.92039398]
[1752206599338,0.4735,2967.3,2967.0,5.92039398]
[1752206600290,0.168,2967.5,2967.0,6.36609398]
[1752206600457,0.4735,2967.6,2967.3,5.75239398]
[1752206600659,0.168,2967.7,2967.3,5.75239398]
[1752206600974,0.4486,2967.6,2967.3,5.75239398]
[1752206601487,0.168,2967.7,2967.3,5.75239398]
[1752206601793,0.168,2967.7,2967.3,6.18428096]
[1752206602288,0.168,2967.7,2967.6,5.75239398]
[1752206602791,0.168,2967.7,2967.4,5.75239398]
[1752206603300,0.6166,2967.7,2967.2,1.517]
[1752206603480,0.6166,2967.7,2967.2,0.168]
[1752206603793,0.4486,2967.6,2967.2,0.168]
[1752206604256,0.4486,2967.5,2967.2,0.168]
[1752206605182,0.4486,2967.4,2967.2,0.168]
[1752206605386,0.4486,2967.3,2966.8,15.153]
[1752206605589,0.9693,2967.4,2967.0,0.168]
[1752206605787,0.4486,2967.2,2967.0,0.168]
[1752206606159,1.4179,2967.4,2967.0,0.168]
[1752206607070,0.9693,2967.4,2967.0,0.168]
[1752206607296,0.4486,2967.3,2967.0,0.168]
[1752206607794,0.4486,2967.2,2967.0,0.168]
[1752206608262,0.4486,2967.2,2967.0,0.17]
[1752206609893,0.168,2967.5,2967.0,0.6041]
[1752206610261,0.168,2967.5,2967.0,0.17]
[1752206610464,0.001,2967.6,2967.1,0.46780294]
[1752206610773,0.001,2967.6,2967.3,1.0516]
[1752206610961,0.001,2967.6,2967.3,1.08530067]
[1752206611158,0.001,2967.6,2967.3,1.0516]
[1752206612808,0.4496,2967.6,2967.3,0.168]
[1752206614367,0.4496,2967.6,2967.0,0.002]
[1752206614368,0.4486,2967.5,2967.0,0.002]
[1752206614567,0.9489,2967.4,2967.0,0.17]
[1752206614976,0.4486,2967.3,2967.0,0.17]
[1752206615477,0.4486,2967.2,2967.0,0.17]
[1752206620308,0.9489,2967.4,2967.0,0.17]
[1752206620478,0.4486,2967.2,2967.0,0.17]
[1752206620679,0.4486,2967.1,2967.0,0.002]
[1752206620899,1.4209,2967.1,2967.0,0.002]
[1752206621512,0.9723,2967.1,2967.0,0.002]
[1752206621783,1.4209,2967.1,2967.0,0.002]
[1752206623202,1.89999881,2967.1,2967.0,0.002]
[1752206623405,1.4209,2967.1,2967.0,0.002]
[1752206635042,1.9709,2967.1,2967.0,0.002]
[1752206635261,15.34119422,2967.1,2967.0,0.002]
[1752206635956,15.34119422,2967.1,2965.9,0.002]
[1752206635957,3.37142498,2966.2,2965.9,0.002]
[1752206636158,6.0598,2966.1,2965.9,0.002]
[1752206636325,5.153,2966.0,2965.9,0.002]
[1752206636525,5.6258,2966.0,2965.9,0.002]
[1752206637961,0.9068,2966.1,2965.9,0.002]
[1752206638165,5.154,2966.0,2965.9,0.002]
[1752206638365,5.80736,2966.0,2965.9,0.002]
[1752206638852,0.8885,2966.4,2965.9,0.002]
[1752206639051,0.168,2966.0,2965.9,0.002]
[1752206639253,5.322,2966.0,2965.9,0.002]
[1752206644072,0.168,2966.0,2965.9,0.002]
[1752206644276,5.322,2966.0,2965.9,0.002]
[1752206644985,0.168,2966.0,2965.9,0.002]
[1752206645269,5.154,2966.0,2965.9,0.4594]
[1752206645471,5.154,2966.0,2965.9,0.002]
[1752206646673,5.322,2966.1,2965.9,0.002]
[1752206647146,0.168,2966.1,2965.9,0.002]
[1752206647347,5.322,2966.1,2965.9,0.4594]
[1752206647549,0.168,2966.1,2965.9,0.4594]
[1752206647743,0.168,2966.1,2966.0,0.9192]
[1752206647965,0.909,2966.6,2966.0,1.3766]
[1752206648172,0.168,2966.4,2966.0,1.3766]
[1752206648372,0.168,2966.4,2966.0,0.9192]
[1752206648556,0.168,2966.4,2966.1,0.4574]
[1752206649069,0.168,2966.4,2966.2,0.4574]
[1752206649260,0.168,2966.4,2966.0,0.9192]
[1752206649261,1.173,2966.4,2966.0,0.9192]
[1752206649756,0.4728,2966.3,2965.9,0.17]
[1752206650073,0.4728,2966.2,2965.9,0.002]
[1752206650274,0.6408,2966.2,2965.9,0.002]
[1752206652251,0.168,2966.2,2965.9,0.002]
[1752206652452,0.168,2966.2,2965.9,0.4594]
[1752206652956,0.168,2966.2,2965.9,0.002]
[1752206653153,0.51104838,2966.1,2965.9,0.002]
[1752206655182,0.168,2966.2,2965.9,0.002]
[1752206655998,0.168,2966.2,2966.0,1.3733]
[1752206656199,0.8924,2966.6,2966.1,0.4574]
[1752206656200,5.153,2966.3,2966.1,0.4574]
[1752206656512,5.153,2966.3,2966.0,0.9159]
[1752206656703,5.153,2966.3,2966.0,1.3733]
[1752206658097,5.153,2966.3,2966.0,0.9159]
[1752206658702,5.6851,2966.3,2965.9,0.002]
[1752206659401,0.5321,2966.3,2965.9,0.002]
[1752206659600,5.153,2966.3,2965.9,0.002]
[1752206661615,5.153,2966.3,2965.9,0.4324]
[1752206662917,5.153,2966.3,2965.9,0.002]
[1752206663305,5.153,2966.3,2965.9,0.4324]
[1752206665487,5.6267,2966.3,2965.9,0.002]
[1752206665990,5.153,2966.3,2965.9,0.4324]
[1752206666191,0.168,2966.4,2966.0,0.4304]
[1752206667721,0.168,2966.4,2965.9,5.75900366]
[1752206667933,0.001,2967.0,2966.3,0.8975]
[1752206668240,0.168,2966.8,2966.5,5.75700366]
[1752206670661,0.168,2966.8,2966.4,0.4304]
[1752206674935,0.168,2966.8,2966.3,1.0655]
[1752206675146,0.168,2966.8,2966.5,0.4304]
[1752206675373,0.168,2966.8,2966.5,5.75700366]
[1752206675585,0.001,2967.0,2966.7,1.1205]
[1752206675985,0.001,2967.0,2966.7,1.5509]
[1752206676671,0.001,2967.0,2966.8,0.4304]
[1752206678008,0.001,2967.0,2966.9,0.4304]
[1752206678672,0.001,2967.0,2966.9,0.63210521]
[1752206680290,0.001,2967.0,2966.9,0.5984]
[1752206681219,0.001,2967.0,2966.9,0.63210521]
[1752206681396,0.001,2967.0,2966.9,11.56740521]
[1752206681601,0.001,2967.3,2966.9,19.11892141]
[1752206681827,0.001,2967.3,2967.2,16.85980366]
[1752206681975,0.001,2967.3,2967.2,22.00980366]
[1752206682295,0.001,2967.3,2967.2,22.44020366]
[1752206685206,0.001,2967.3,2967.2,10.168]
[1752206686478,0.001,2967.3,2967.2,10.5984]
[1752206688014,0.001,2967.3,2967.2,15.7474]
[1752206689094,0.001,2967.3,2967.2,15.317]
[1752206689701,0.001,2967.3,2967.2,10.168]
[1752206692030,0.4575,2967.3,2967.2,0.168]
[1752206692231,0.4575,2967.3,2966.1,0.9342]
[1752206692232,1.3444,2967.3,2966.1,0.9342]
[1752206692516,0.168,2967.1,2966.6,0.168]
[1752206692685,0.4565,2967.0,2966.6,0.168]
[1752206692889,0.168,2967.1,2966.6,0.168]
[1752206693089,0.4565,2966.9,2966.6,0.168]
[1752206693486,0.168,2967.1,2966.6,0.168]
[1752206693487,0.6245,2967.1,2966.6,5.92500366]
[1752206693686,0.168,2967.1,2966.9,5.75700366]
[1752206693892,0.001,2967.3,2966.9,6.37910366]
[1752206694086,0.001,2967.3,2966.9,5.92500366]
[1752206694294,0.4575,2967.3,2966.9,0.168]
[1752206694523,0.4565,2967.2,2966.9,0.168]
[1752206696519,0.001,2967.3,2966.9,5.92500366]
[1752206696725,0.001,2967.3,2966.9,6.37910366]
[1752206697426,0.001,2967.3,2967.0,0.002]
[1752206698129,0.001,2967.3,2967.1,0.4541]
[1752206698332,0.001,2967.3,2967.2,7.29570546]
[1752206698625,0.001,2967.3,2967.2,0.168]
[1752206700735,0.4575,2967.3,2967.1,5.149]
[1752206701522,0.001,2967.3,2967.1,5.149]
[1752206701724,0.4565,2967.2,2967.0,0.17]
[1752206701927,0.4565,2967.2,2967.0,10.17]
[1752206702114,0.4565,2967.1,2967.0,10.17]
[1752206702319,0.001,2967.3,2967.0,10.17]
[1752206702516,0.001,2967.3,2967.0,0.17]
[1752206702716,0.4565,2967.2,2967.0,0.17]
[1752206703629,0.001,2967.3,2967.0,0.17]
[1752206704305,0.4575,2967.3,2967.0,0.17]
[1752206705808,0.001,2967.3,2967.0,0.6241]
[1752206706202,0.001,2967.3,2967.1,0.4541]
[1752206706402,0.001,2967.3,2967.2,5.75700366]
[1752206706731,0.001,2967.3,2967.2,0.168]
[1752206708232,0.001,2967.3,2967.2,12.46440366]
[1752206709537,0.001,2967.3,2967.2,6.2533]
[1752206709712,0.001,2967.3,2967.2,0.168]
[1752206709909,0.4575,2967.3,2967.0,0.002]
[1752206710233,0.4565,2967.2,2967.0,0.17]
[1752206710407,0.4565,2967.2,2967.0,10.17]
[1752206711409,0.001,2967.3,2967.0,10.17]
[1752206711619,0.4575,2967.3,2967.0,10.17]
[1752206712016,0.4565,2967.2,2967.0,10.17]
[1752206712530,0.001,2967.3,2967.0,10.17]
[1752206712906,0.4575,2967.3,2967.0,10.17]
[1752206713942,0.4565,2967.2,2967.0,10.17]
[1752206715431,0.001,2967.3,2967.0,10.17]
[1752206715638,0.4575,2967.3,2967.0,10.17]
[1752206715806,0.001,2967.3,2967.1,0.4541]
[1752206716003,0.001,2967.3,2967.2,0.4541]
[1752206716207,0.001,2967.3,2967.2,0.6221]
[1752206716740,0.001,2967.3,2967.2,0.168]
[1752206716908,0.001,2967.3,2967.2,0.6558018]
[1752206717440,0.001,2967.3,2967.2,0.6221]
[1752206717734,0.001,2967.3,2967.2,6.41280546]
[1752206717905,0.001,2967.3,2967.2,6.37910366]
[1752206719509,0.001,2967.3,2967.2,0.168]
[1752206719938,0.001,2967.3,2967.2,0.6221]
[1752206722814,0.001,2967.3,2967.2,0.168]
[1752206725346,0.4307,2967.3,2966.9,5.147]
[1752206725514,0.4297,2967.2,2967.1,0.168]
[1752206726516,0.4297,2967.2,2966.7,0.9098]
[1752206726517,0.4297,2967.2,2966.7,10.9098]
[1752206726728,0.4297,2967.1,2966.9,0.168]
[1752206726933,0.4297,2967.0,2966.9,0.168]
[1752206728045,0.001,2967.3,2966.9,0.168]
[1752206728046,0.4297,2967.2,2966.9,0.168]
[1752206728245,0.4297,2967.1,2966.9,0.168]
[1752206728849,0.4297,2967.0,2966.9,0.168]
[1752206734157,0.8866,2966.9,2966.5,0.168]
[1752206734358,0.4297,2966.8,2966.5,0.168]
[1752206734761,0.8445,2966.6,2965.9,0.8492]
[1752206735056,5.75700366,2967.0,2965.9,0.002]
[1752206735057,0.4297,2966.5,2965.9,0.002]
[1752206735261,0.8445,2966.4,2965.9,0.002]
[1752206735878,0.8635,2966.2,2965.9,0.002]
[1752206736337,20.97163415,2966.1,2965.9,0.002]
[1752206736543,13.37154416,2966.0,2965.9,0.002]
[1752206736783,15.23484416,2966.0,2965.9,0.002]
[1752206737752,1.8633,2966.0,2965.9,0.002]
[1752206738045,1.8633,2966.0,2965.8,0.002]
[1752206738046,13.92165784,2965.9,2965.8,0.002]
[1752206738246,0.55,2965.3,2965.0,0.002]
[1752206738558,0.8836,2965.4,2965.0,0.002]
[1752206738559,1.4336,2965.1,2965.0,0.002]
[1752206738746,2.09176,2965.1,2965.0,0.002]
[1752206739076,2.52146,2965.1,2965.0,0.002]
[1752206739282,1.97146,2965.1,2965.0,0.002]
[1752206739479,0.4297,2965.5,2965.0,0.002]
[1752206739682,0.8324,2965.4,2965.0,0.002]
[1752206739983,0.4297,2965.3,2965.0,0.002]
[1752206740752,0.8324,2965.4,2965.0,0.002]
[1752206740960,0.8324,2965.4,2965.0,5.75900366]
[1752206741153,0.4297,2965.5,2965.0,5.75900366]
[1752206741379,0.8324,2965.7,2965.3,5.75700366]
[1752206741576,0.4297,2965.6,2965.1,5.75700366]
[1752206741779,3.23914,2965.7,2965.1,5.75700366]
[1752206741780,0.8324,2965.7,2965.1,5.75700366]
[1752206741945,0.8324,2966.0,2965.4,5.75700366]
[1752206742144,0.4297,2965.9,2965.4,5.75700366]
[1752206742347,0.4297,2965.8,2965.4,5.75700366]
[1752206743092,0.8324,2966.0,2965.4,5.79072592]
[1752206743286,0.8324,2966.0,2965.4,5.75700366]
[1752206744783,0.168,2965.9,2965.4,5.92500366]
[1752206744982,0.5977,2965.9,2965.4,5.92500366]
[1752206745186,0.168,2965.9,2965.7,5.75700366]
[1752206745380,0.168,2966.2,2965.7,5.92500366]
[1752206745783,0.5977,2966.2,2965.7,5.92500366]
[1752206746167,0.168,2966.2,2965.7,5.92500366]
[1752206746583,0.168,2966.2,2965.8,0.03371771]
[1752206746757,5.317,2966.5,2966.0,5.92500366]
[1752206746957,0.168,2966.5,2966.0,5.92500366]
[1752206747490,0.168,2966.5,2966.0,9.29653146]
[1752206747685,0.168,2966.5,2965.9,0.3658]
[1752206747686,8.9129,2967.0,2966.3,5.75700366]
[1752206747988,5.317,2966.9,2966.4,0.168]
[1752206748362,0.168,2966.9,2966.6,5.75700366]
[1752206748890,0.168,2966.9,2966.5,3.73677561]
[1752206749091,0.168,2966.9,2966.5,0.3658]
[1752206749293,0.001,2967.0,2966.6,0.03370862]
[1752206749462,0.001,2967.0,2966.6,0.168]
[1752206750088,0.001,2967.0,2966.8,3.37058472]
[1752206750277,0.001,2967.0,2966.7,9.52827695]
[1752206750278,0.001,2967.0,2966.7,9.89407695]
[1752206750453,0.001,2967.0,2966.9,0.168]
[1752206753096,0.001,2967.0,2966.7,4.634433]
[1752206753097,0.4759,2967.0,2966.7,0.168]
[1752206753394,0.4749,2966.9,2966.0,13.73732626]
[1752206753598,0.4749,2966.9,2966.5,0.168]
[1752206753887,1.0422,2967.0,2966.5,0.168]
[1752206753888,0.4749,2966.8,2966.5,0.168]
[1752206754292,0.4749,2966.7,2966.5,0.168]
[1752206755599,1.5171,2967.0,2966.5,0.168]
[1752206755895,0.001,2967.0,2966.7,8.63037695]
[1752206756083,0.001,2967.0,2966.9,0.168]
[1752206759678,0.001,2967.0,2966.9,0.20170521]
[1752206760765,0.001,2967.0,2966.9,1.03470521]
[1752206760966,0.001,2967.0,2966.9,1.40050521]
[1752206761569,0.001,2967.0,2966.9,4.73732141]
[1752206761805,0.001,2967.0,2966.9,11.40050521]
[1752206762103,0.001,2967.0,2966.9,11.3668]
[1752206763406,0.001,2967.0,2966.9,16.5138]
[1752206763805,0.001,2967.0,2966.9,19.88432141]
[1752206764008,0.001,2967.0,2966.9,16.5138]
[1752206764506,0.001,2967.0,2966.9,11.001]
[1752206764705,0.001,2967.0,2966.9,16.148]
[1752206765213,0.001,2967.0,2966.9,15.315]
[1752206766022,0.001,2967.0,2966.9,0.168]
[1752206767442,0.001,2967.0,2966.9,0.56750521]
[1752206767593,0.001,2967.0,2966.9,0.168]
[1752206772201,0.001,2967.0,2966.9,11.47940521]
[1752206772404,0.001,2967.0,2966.9,11.4457]
[1752206772707,0.001,2967.0,2966.9,14.81622141]
[1752206773030,0.001,2967.0,2966.9,11.4457]
[1752206773538,0.001,2967.0,2966.9,1.0799]
[1752206773712,0.001,2967.0,2966.9,16.2259]
[1752206775637,0.001,2967.0,2966.9,16.5917]
[1752206775811,0.001,2967.0,2966.9,19.96222141]
[1752206776638,0.001,2967.0,2966.9,16.5917]
[1752206777316,0.001,2967.0,2966.9,16.2259]
[1752206781174,0.001,2967.0,2966.9,19.96222141]
[1752206784972,0.001,2967.0,2966.9,16.2259]
[1752206785977,0.001,2967.0,2966.9,19.59642141]
[1752206788045,0.001,2967.0,2966.9,19.96222141]
[1752206788375,0.001,2967.3,2967.2,10.0]
[1752206788579,0.001,2967.3,2967.2,5.146]
[1752206788879,0.001,2967.3,2967.2,15.314]
[1752206793255,0.001,2967.3,2967.2,18.68418064]
[1752206793657,0.001,2967.3,2967.2,15.314]
[1752206794891,0.001,2967.3,2967.2,5.314]
[1752206795669,0.001,2967.3,2967.2,8.71788244]
[1752206795894,0.001,2967.3,2967.2,15.314]
[1752206796198,0.001,2967.3,2967.2,18.68418064]
[1752206798501,0.001,2967.3,2967.2,15.314]
[1752206799180,0.001,2967.3,2967.2,10.168]
[1752206799364,0.4298,2967.3,2967.2,5.145]
[1752206799980,0.4298,2967.3,2967.1,5.145]
[1752206800981,0.001,2967.3,2966.8,10.0]
[1752206801182,0.4288,2967.2,2966.4,10.0]
[1752206801385,0.4288,2967.2,2966.1,12.00372253]
[1752206801386,0.8533,2967.1,2966.1,0.002]
[1752206801588,0.8533,2967.1,2966.2,5.145]
[1752206801971,0.8533,2966.9,2966.2,5.145]
[1752206802171,0.4288,2966.8,2966.2,5.145]
[1752206803206,0.8533,2966.9,2966.3,10.03371203]
[1752206803415,1.2821,2966.9,2966.4,5.145]
[1752206803589,0.4288,2966.8,2966.4,5.145]
[1752206804678,0.8533,2966.9,2966.4,5.145]
[1752206804889,0.4288,2966.7,2966.4,5.145]
[1752206805636,0.8533,2966.9,2966.4,5.145]
[1752206805835,0.846,2967.3,2966.6,10.8886]
[1752206806039,0.846,2967.3,2967.0,8.63037695]
[1752206806198,0.846,2967.3,2967.1,5.17870294]
[1752206806526,0.001,2967.3,2967.1,5.17870294]
[1752206806847,0.4298,2967.3,2967.1,5.145]
[1752206807526,0.4298,2967.3,2967.1,5.17870294]
[1752206807827,0.001,2967.3,2967.1,5.17870294]
[1752206808824,0.001,2967.3,2967.2,10.0]
[1752206809395,0.001,2967.3,2967.2,10.168]
[1752206812658,0.001,2967.3,2967.2,11.0258]
[1752206814940,0.001,2967.6,2967.3,3.37006706]
[1752206815147,0.001,2967.6,2967.5,8.79837695]
[1752206815949,0.001,2967.6,2967.5,13.94337695]
[1752206817258,0.001,2967.6,2967.5,17.31321688]
[1752206817867,0.001,2967.6,2967.5,28.23701688]
[1752206818062,0.001,2967.6,2967.5,28.60281688]
[1752206818443,0.001,2967.6,2967.5,25.23297695]
[1752206818773,0.001,2967.6,2967.5,28.60281688]
[1752206819889,0.04,2967.9,2967.8,3.91949929]
[1752206820069,0.001,2968.5,2968.1,8.63037695]
[1752206820238,0.001,2968.5,2968.1,28.05173567]
[1752206820439,0.001,2968.5,2968.1,28.21973567]